[Event "December 19 Late 2023"]
[Site "https://www.chess.com"]
[Date "2023.12.19"]
[Round "1"]
[White "Kubatko, Ivan"]
[Black "Bryakin, Mikhail"]
[Result "0-1"]
[Board "60"]
[TimeControl "180+1"]
[WhiteFideId "24111473"]
[BlackFideId "4165314"]
[WhiteElo "2285"]
[BlackElo "2495"]
[WhiteTeam "RUS"]
[BlackTeam "SRB"]
[WhiteClock "0:00:00"]
[BlackClock "0:01:11"]

1. e4 {[%clk 0:03:00]}  Nf6 {[%clk 0:02:53]} 2. e5 {[%clk 0:02:57]}  Nd5 {[%clk 0:02:38]} 3. c4 {[%clk 0:02:57]}  Nb6 {[%clk 0:02:25]} 4. a4 {[%clk 0:02:57]}  a5 {[%clk 0:02:15]} 5. c5 {[%clk 0:02:39]}  Nd5 {[%clk 0:02:11]} 6. Nc3 {[%clk 0:02:37]}  Nb4 {[%clk 0:02:06]} 7. Bc4 {[%clk 0:02:24]}  d5 {[%clk 0:02:04]} 8. cxd6 {[%clk 0:02:23]}  cxd6 {[%clk 0:02:05]} 9. Nf3 {[%clk 0:02:05]}  d5 {[%clk 0:02:04]} 10. Bb5+ {[%clk 0:02:00]}  N8c6 {[%clk 0:02:05]} 11. d4 {[%clk 0:01:55]}  Bg4 {[%clk 0:02:04]} 12. h3 {[%clk 0:01:48]}  Bh5 {[%clk 0:02:03]} 13. e6 {[%clk 0:01:46]}  f6 {[%clk 0:02:01]} 14. Bf4 {[%clk 0:01:12]}  g5 {[%clk 0:01:51]} 15. g4 {[%clk 0:01:08]}  Bg6 {[%clk 0:01:51]} 16. Bg3 {[%clk 0:00:54]}  Nc2+ {[%clk 0:01:50]} 17. Kf1 {[%clk 0:00:55]}  Nxa1 {[%clk 0:01:50]} 18. Qxa1 {[%clk 0:00:56]}  Bg7 {[%clk 0:01:48]} 19. Qe1 {[%clk 0:00:37]}  O-O {[%clk 0:01:46]} 20. Qe3 {[%clk 0:00:33]}  Nb4 {[%clk 0:01:44]} 21. Kg2 {[%clk 0:00:32]}  Qb6 {[%clk 0:01:38]} 22. h4 {[%clk 0:00:32]}  h6 {[%clk 0:01:38]} 23. hxg5 {[%clk 0:00:27]}  fxg5 {[%clk 0:01:39]} 24. Nxg5 {[%clk 0:00:27]}  hxg5 {[%clk 0:01:39]} 25. Qxg5 {[%clk 0:00:26]}  Qxe6 {[%clk 0:01:39]} 26. Bd7 {[%clk 0:00:14]}  Qf6 {[%clk 0:01:38]} 27. Qe3 {[%clk 0:00:06]}  Ra6 {[%clk 0:01:34]} 28. g5 {[%clk 0:00:04]}  Qf7 {[%clk 0:01:31]} 29. Be5 {[%clk 0:00:01]}  Bxe5 {[%clk 0:01:29]} 30. dxe5 {[%clk 0:00:01]}  e6 {[%clk 0:01:26]} 31. Bb5 {[%clk 0:00:01]}  Rc6 {[%clk 0:01:26]} 32. Rh6 {[%clk 0:00:01]}  d4 {[%clk 0:01:19]} 33. Qxd4 {[%clk 0:00:01]}  Qf3+ {[%clk 0:01:20]} 34. Kg1 {[%clk 0:00:01]}  Rxc3 {[%clk 0:01:12]} 35. Qxc3 {[%clk 0:00:01]}  Qxf2+ {[%clk 0:01:11]} 36. Kh1 {[%clk 0:00:00]}  Be4+ {[%clk 0:01:11]} 0-1

[Event "December 19 Late 2023"]
[Site "https://www.chess.com"]
[Date "2023.12.19"]
[Round "1"]
[White "Buchenau, Frank"]
[Black "Rustemov, Alexander"]
[Result "0-1"]
[Board "62"]
[TimeControl "180+1"]
[WhiteFideId "4604350"]
[BlackFideId "4119002"]
[WhiteElo "2157"]
[BlackElo "2800"]
[WhiteTeam "GER"]
[BlackTeam "RUS"]
[WhiteClock "0:00:00"]
[BlackClock "0:00:38"]

1. e4 {[%clk 0:03:00]}  e6 {[%clk 0:02:59]} 2. d4 {[%clk 0:03:00]}  d5 {[%clk 0:02:59]} 3. Nd2 {[%clk 0:03:00]}  dxe4 {[%clk 0:02:59]} 4. Nxe4 {[%clk 0:03:00]}  Bd7 {[%clk 0:02:59]} 5. Nf3 {[%clk 0:03:00]}  Bc6 {[%clk 0:02:59]} 6. Bd3 {[%clk 0:03:00]}  Nd7 {[%clk 0:02:59]} 7. O-O {[%clk 0:02:59]}  Ngf6 {[%clk 0:03:00]} 8. Ned2 {[%clk 0:02:58]}  Be7 {[%clk 0:03:00]} 9. Re1 {[%clk 0:02:56]}  O-O {[%clk 0:02:59]} 10. Nc4 {[%clk 0:02:56]}  Bd5 {[%clk 0:02:59]} 11. Bf4 {[%clk 0:02:33]}  c5 {[%clk 0:02:58]} 12. c3 {[%clk 0:02:16]}  Rc8 {[%clk 0:02:57]} 13. Nd6 {[%clk 0:02:11]}  Bxd6 {[%clk 0:02:42]} 14. Bxd6 {[%clk 0:02:10]}  Re8 {[%clk 0:02:42]} 15. dxc5 {[%clk 0:01:42]}  Nxc5 {[%clk 0:02:42]} 16. Bb5 {[%clk 0:01:37]}  Qxd6 {[%clk 0:02:32]} 17. c4 {[%clk 0:01:30]}  Red8 {[%clk 0:02:27]} 18. cxd5 {[%clk 0:01:26]}  Qxd5 {[%clk 0:02:28]} 19. Qxd5 {[%clk 0:01:23]}  Nxd5 {[%clk 0:02:28]} 20. Rac1 {[%clk 0:01:18]}  Nb4 {[%clk 0:02:24]} 21. a3 {[%clk 0:01:00]}  Nbd3 {[%clk 0:02:23]} 22. Bxd3 {[%clk 0:00:59]}  Nxd3 {[%clk 0:02:24]} 23. Rxc8 {[%clk 0:00:55]}  Rxc8 {[%clk 0:02:25]} 24. Rb1 {[%clk 0:00:52]}  Rc2 {[%clk 0:02:24]} 25. Rd1 {[%clk 0:00:47]}  Rxb2 {[%clk 0:02:07]} 26. Ne5 {[%clk 0:00:40]}  Ra2 {[%clk 0:01:41]} 27. Nxd3 {[%clk 0:00:35]}  Rxa3 {[%clk 0:01:29]} 28. Nc5 {[%clk 0:00:34]}  Kf8 {[%clk 0:01:22]} 29. Nxb7 {[%clk 0:00:29]}  Ke7 {[%clk 0:01:21]} 30. Kf1 {[%clk 0:00:28]}  a5 {[%clk 0:01:16]} 31. Nc5 {[%clk 0:00:22]}  Rc3 {[%clk 0:01:15]} 32. Ne4 {[%clk 0:00:17]}  Rc4 {[%clk 0:01:12]} 33. Nd6 {[%clk 0:00:16]}  Rb4 {[%clk 0:01:12]} 34. Nc8+ {[%clk 0:00:12]}  Kf6 {[%clk 0:01:12]} 35. Rd7 {[%clk 0:00:11]}  Kg6 {[%clk 0:01:01]} 36. Nd6 {[%clk 0:00:10]}  f6 {[%clk 0:01:01]} 37. Ne8 {[%clk 0:00:09]}  a4 {[%clk 0:00:59]} 38. Rxg7+ {[%clk 0:00:09]}  Kf5 {[%clk 0:00:59]} 39. Ra7 {[%clk 0:00:09]}  Ke4 {[%clk 0:00:53]} 40. Nxf6+ {[%clk 0:00:06]}  Kd3 {[%clk 0:00:53]} 41. g3 {[%clk 0:00:05]}  Kc2 {[%clk 0:00:52]} 42. Kg2 {[%clk 0:00:05]}  Kb2 {[%clk 0:00:52]} 43. Nd7 {[%clk 0:00:02]}  a3 {[%clk 0:00:52]} 44. Nc5 {[%clk 0:00:02]}  Rc4 {[%clk 0:00:40]} 45. Nd3+ {[%clk 0:00:02]}  Kb3 {[%clk 0:00:39]} 46. h4 {[%clk 0:00:01]}  a2 {[%clk 0:00:38]} 47. Rb7+ {[%clk 0:00:01]}  Kc2 {[%clk 0:00:37]} 48. Ra7 {[%clk 0:00:01]}  Kb3 {[%clk 0:00:37]} 49. Rb7+ {[%clk 0:00:01]}  Ka3 {[%clk 0:00:37]} 50. Ra7+ {[%clk 0:00:00]}  Ra4 {[%clk 0:00:38]} 0-1

[Event "December 19 Late 2023"]
[Site "https://www.chess.com"]
[Date "2023.12.19"]
[Round "1"]
[White "Pakleza, Zbigniew"]
[Black "Azar, Sebastien"]
[Result "1-0"]
[Board "67"]
[TimeControl "180+1"]
[WhiteFideId "1119290"]
[BlackFideId "2640198"]
[WhiteElo "2410"]
[BlackElo "2400"]
[WhiteTeam "POL"]
[BlackTeam "CAN"]
[WhiteClock "0:02:04"]
[BlackClock "0:01:08"]

1. d4 {[%clk 0:03:00]}  d5 {[%clk 0:02:59]} 2. Bf4 {[%clk 0:03:00]}  Nf6 {[%clk 0:02:58]} 3. e3 {[%clk 0:03:00]}  e6 {[%clk 0:02:58]} 4. Nd2 {[%clk 0:03:00]}  Bd6 {[%clk 0:02:55]} 5. Bg3 {[%clk 0:03:00]}  O-O {[%clk 0:02:55]} 6. Bd3 {[%clk 0:03:00]}  Re8 {[%clk 0:02:49]} 7. Ngf3 {[%clk 0:02:59]}  c5 {[%clk 0:02:44]} 8. c3 {[%clk 0:02:59]}  Nc6 {[%clk 0:02:41]} 9. Ne5 {[%clk 0:02:57]}  Qc7 {[%clk 0:02:38]} 10. f4 {[%clk 0:02:56]}  a6 {[%clk 0:02:30]} 11. Bh4 {[%clk 0:02:55]}  Be7 {[%clk 0:02:24]} 12. O-O {[%clk 0:02:45]}  b5 {[%clk 0:02:13]} 13. Qf3 {[%clk 0:02:33]}  g6 {[%clk 0:02:03]} 14. g4 {[%clk 0:02:19]}  h5 {[%clk 0:01:41]} 15. Bxf6 {[%clk 0:02:15]}  Bxf6 {[%clk 0:01:42]} 16. gxh5 {[%clk 0:02:14]}  g5 {[%clk 0:01:31]} 17. Nxc6 {[%clk 0:02:10]}  Qxc6 {[%clk 0:01:18]} 18. fxg5 {[%clk 0:02:08]}  Bg7 {[%clk 0:01:12]} 19. Qxf7+ {[%clk 0:02:06]}  Kh8 {[%clk 0:01:08]} 20. Qg6 {[%clk 0:02:04]} 1-0

[Event "December 19 Late 2023"]
[Site "https://www.chess.com"]
[Date "2023.12.19"]
[Round "1"]
[White "Delorme, Axel"]
[Black "Schmakel, Sam"]
[Result "1-0"]
[Board "68"]
[TimeControl "180+1"]
[WhiteFideId "632023"]
[BlackFideId "2039311"]
[WhiteElo "2478"]
[BlackElo "2356"]
[WhiteTeam "FRA"]
[BlackTeam "USA"]
[WhiteClock "0:00:08"]
[BlackClock "0:00:16"]

1. e4 {[%clk 0:03:00]}  e6 {[%clk 0:02:57]} 2. d4 {[%clk 0:03:00]}  d5 {[%clk 0:02:57]} 3. Nc3 {[%clk 0:03:01]}  Nf6 {[%clk 0:02:56]} 4. e5 {[%clk 0:03:01]}  Nfd7 {[%clk 0:02:57]} 5. f4 {[%clk 0:03:02]}  c5 {[%clk 0:02:57]} 6. Nf3 {[%clk 0:03:02]}  Nc6 {[%clk 0:02:58]} 7. Be3 {[%clk 0:03:01]}  cxd4 {[%clk 0:02:56]} 8. Nxd4 {[%clk 0:03:01]}  Qb6 {[%clk 0:02:56]} 9. Qd2 {[%clk 0:02:59]}  Qxb2 {[%clk 0:02:56]} 10. Rb1 {[%clk 0:03:00]}  Qa3 {[%clk 0:02:56]} 11. Bb5 {[%clk 0:03:00]}  Nxd4 {[%clk 0:02:56]} 12. Bxd4 {[%clk 0:03:00]}  a6 {[%clk 0:02:57]} 13. Bxd7+ {[%clk 0:03:00]}  Bxd7 {[%clk 0:02:58]} 14. Rb3 {[%clk 0:03:01]}  Qe7 {[%clk 0:02:58]} 15. Rxb7 {[%clk 0:03:01]}  Rc8 {[%clk 0:02:58]} 16. O-O {[%clk 0:03:00]}  Qd8 {[%clk 0:02:59]} 17. f5 {[%clk 0:02:58]}  exf5 {[%clk 0:03:00]} 18. Rfb1 {[%clk 0:02:58]}  Be6 {[%clk 0:02:47]} 19. Ne2 {[%clk 0:02:45]}  Be7 {[%clk 0:02:34]} 20. Bb6 {[%clk 0:02:41]}  Bc5+ {[%clk 0:02:34]} 21. Bxc5 {[%clk 0:02:40]}  Rxc5 {[%clk 0:02:35]} 22. Qb4 {[%clk 0:02:29]}  Rc4 {[%clk 0:02:10]} 23. Qa3 {[%clk 0:02:08]}  Bc8 {[%clk 0:02:05]} 24. Ra7 {[%clk 0:01:54]}  Rc7 {[%clk 0:02:04]} 25. Rxc7 {[%clk 0:00:52]}  Qxc7 {[%clk 0:02:05]} 26. Nd4 {[%clk 0:00:52]}  h5 {[%clk 0:00:45]} 27. Qa4+ {[%clk 0:00:28]}  Qd7 {[%clk 0:00:39]} 28. Qb4 {[%clk 0:00:19]}  Qc7 {[%clk 0:00:28]} 29. Rb3 {[%clk 0:00:10]}  Bd7 {[%clk 0:00:16]} 30. Qb8+ {[%clk 0:00:08]} 1-0

[Event "December 19 Late 2023"]
[Site "https://www.chess.com"]
[Date "2023.12.19"]
[Round "1"]
[White "Akhayan, Ruben"]
[Black "Tatarinov, Dmitry"]
[Result "0-1"]
[Board "70"]
[TimeControl "180+1"]
[WhiteFideId "204439"]
[BlackFideId "24160067"]
[WhiteElo "2141"]
[BlackElo "2344"]
[WhiteTeam "BEL"]
[BlackTeam "RUS"]
[WhiteClock "0:00:26"]
[BlackClock "0:01:35"]

1. e4 {[%clk 0:02:58]}  e5 {[%clk 0:03:00]} 2. Nf3 {[%clk 0:02:59]}  Nc6 {[%clk 0:03:00]} 3. Bb5 {[%clk 0:02:56]}  a6 {[%clk 0:02:58]} 4. Bxc6 {[%clk 0:02:56]}  dxc6 {[%clk 0:02:48]} 5. O-O {[%clk 0:02:51]}  Bd6 {[%clk 0:02:44]} 6. d4 {[%clk 0:02:44]}  exd4 {[%clk 0:02:39]} 7. Qxd4 {[%clk 0:02:42]}  f6 {[%clk 0:02:29]} 8. Nc3 {[%clk 0:02:42]}  Qe7 {[%clk 0:02:25]} 9. Re1 {[%clk 0:02:32]}  Bg4 {[%clk 0:02:25]} 10. Be3 {[%clk 0:02:03]}  Bxf3 {[%clk 0:02:22]} 11. gxf3 {[%clk 0:02:03]}  Be5 {[%clk 0:02:15]} 12. Qc5 {[%clk 0:02:00]}  Qxc5 {[%clk 0:02:08]} 13. Bxc5 {[%clk 0:01:59]}  O-O-O {[%clk 0:02:08]} 14. Rad1 {[%clk 0:01:58]}  Nh6 {[%clk 0:02:08]} 15. Rxd8+ {[%clk 0:01:52]}  Rxd8 {[%clk 0:02:07]} 16. Rd1 {[%clk 0:01:49]}  Bxc3 {[%clk 0:02:06]} 17. Rxd8+ {[%clk 0:01:48]}  Kxd8 {[%clk 0:02:06]} 18. bxc3 {[%clk 0:01:48]}  Nf7 {[%clk 0:02:04]} 19. Bf8 {[%clk 0:01:45]}  g6 {[%clk 0:02:05]} 20. Kg2 {[%clk 0:01:39]}  Kd7 {[%clk 0:02:05]} 21. f4 {[%clk 0:01:39]}  Ke6 {[%clk 0:02:06]} 22. Kf3 {[%clk 0:01:39]}  f5 {[%clk 0:02:05]} 23. h4 {[%clk 0:01:16]}  fxe4+ {[%clk 0:01:53]} 24. Kxe4 {[%clk 0:01:16]}  Nd6+ {[%clk 0:01:41]} 25. Bxd6 {[%clk 0:00:49]}  cxd6 {[%clk 0:01:42]} 26. c4 {[%clk 0:00:49]}  b5 {[%clk 0:01:38]} 27. cxb5 {[%clk 0:00:46]}  axb5 {[%clk 0:01:38]} 28. c3 {[%clk 0:00:42]}  c5 {[%clk 0:01:39]} 29. a3 {[%clk 0:00:40]}  d5+ {[%clk 0:01:39]} 30. Ke3 {[%clk 0:00:40]}  Kf5 {[%clk 0:01:37]} 31. Kf3 {[%clk 0:00:40]}  d4 {[%clk 0:01:37]} 32. cxd4 {[%clk 0:00:40]}  cxd4 {[%clk 0:01:37]} 33. Kg3 {[%clk 0:00:26]}  Ke4 {[%clk 0:01:35]} 0-1

[Event "December 19 Late 2023"]
[Site "https://www.chess.com"]
[Date "2023.12.19"]
[Round "1"]
[White "Skvortsov, Andrei"]
[Black "Storn, Justin"]
[Result "0-1"]
[Board "71"]
[TimeControl "180+1"]
[WhiteFideId "24108600"]
[BlackFideId "30922720"]
[WhiteElo "2338"]
[BlackElo "2392"]
[WhiteTeam "MNE"]
[BlackTeam "USA"]
[WhiteClock "0:01:05"]
[BlackClock "0:00:12"]

1. e4 {[%clk 0:03:00]}  c6 {[%clk 0:02:58]} 2. e5 {[%clk 0:02:59]}  d5 {[%clk 0:02:59]} 3. exd6 {[%clk 0:03:00]}  exd6 {[%clk 0:02:56]} 4. Nf3 {[%clk 0:03:00]}  d5 {[%clk 0:02:55]} 5. d4 {[%clk 0:03:01]}  Bd6 {[%clk 0:02:55]} 6. Bd3 {[%clk 0:03:02]}  Ne7 {[%clk 0:02:55]} 7. h3 {[%clk 0:03:01]}  O-O {[%clk 0:02:49]} 8. O-O {[%clk 0:03:00]}  Bf5 {[%clk 0:02:48]} 9. Re1 {[%clk 0:03:00]}  Bxd3 {[%clk 0:02:47]} 10. Qxd3 {[%clk 0:02:59]}  Nd7 {[%clk 0:02:43]} 11. Nc3 {[%clk 0:02:57]}  Re8 {[%clk 0:02:36]} 12. Bg5 {[%clk 0:02:57]}  f6 {[%clk 0:02:36]} 13. Bd2 {[%clk 0:02:57]}  Qc7 {[%clk 0:02:23]} 14. Re2 {[%clk 0:02:52]}  Ng6 {[%clk 0:02:21]} 15. Rae1 {[%clk 0:02:52]}  Kf7 {[%clk 0:02:14]} 16. Rxe8 {[%clk 0:02:51]}  Rxe8 {[%clk 0:02:15]} 17. Rxe8 {[%clk 0:02:51]}  Kxe8 {[%clk 0:02:16]} 18. Qe2+ {[%clk 0:02:48]}  Kf7 {[%clk 0:02:16]} 19. g3 {[%clk 0:02:44]}  Ndf8 {[%clk 0:02:04]} 20. Kg2 {[%clk 0:02:41]}  Ne6 {[%clk 0:02:04]} 21. Be3 {[%clk 0:02:41]}  Ne7 {[%clk 0:01:25]} 22. Qd3 {[%clk 0:02:40]}  g6 {[%clk 0:01:24]} 23. Ne2 {[%clk 0:02:40]}  Nf5 {[%clk 0:01:21]} 24. Bd2 {[%clk 0:02:39]}  h5 {[%clk 0:01:03]} 25. a4 {[%clk 0:02:37]}  Kg7 {[%clk 0:00:51]} 26. b3 {[%clk 0:02:37]}  h4 {[%clk 0:00:30]} 27. g4 {[%clk 0:02:35]}  Ne7 {[%clk 0:00:28]} 28. c4 {[%clk 0:02:35]}  g5 {[%clk 0:00:25]} 29. c5 {[%clk 0:02:34]}  Bf4 {[%clk 0:00:25]} 30. Nxf4 {[%clk 0:02:26]}  Nxf4+ {[%clk 0:00:26]} 31. Bxf4 {[%clk 0:02:26]}  Qxf4 {[%clk 0:00:27]} 32. Qe2 {[%clk 0:02:25]}  Kf7 {[%clk 0:00:26]} 33. Qe3 {[%clk 0:02:14]}  Ng6 {[%clk 0:00:25]} 34. b4 {[%clk 0:02:13]}  Qe4 {[%clk 0:00:21]} 35. Qxe4 {[%clk 0:02:11]}  dxe4 {[%clk 0:00:22]} 36. Nd2 {[%clk 0:02:11]}  Nf4+ {[%clk 0:00:22]} 37. Kh2 {[%clk 0:02:10]}  e3 {[%clk 0:00:22]} 38. fxe3 {[%clk 0:02:09]}  Nd5 {[%clk 0:00:23]} 39. Nc4 {[%clk 0:02:06]}  Nxb4 {[%clk 0:00:22]} 40. Nd6+ {[%clk 0:02:06]}  Ke6 {[%clk 0:00:22]} 41. Nxb7 {[%clk 0:02:00]}  Nc2 {[%clk 0:00:23]} 42. Kg2 {[%clk 0:01:49]}  Nxe3+ {[%clk 0:00:19]} 43. Kf3 {[%clk 0:01:50]}  Nd5 {[%clk 0:00:19]} 44. Na5 {[%clk 0:01:45]}  Kd7 {[%clk 0:00:18]} 45. Kg2 {[%clk 0:01:42]}  Nf4+ {[%clk 0:00:18]} 46. Kh2 {[%clk 0:01:40]}  Ne2 {[%clk 0:00:19]} 47. Nb3 {[%clk 0:01:40]}  Ke6 {[%clk 0:00:18]} 48. Kg2 {[%clk 0:01:38]}  Nf4+ {[%clk 0:00:18]} 49. Kh2 {[%clk 0:01:38]}  Ne2 {[%clk 0:00:18]} 50. Kg2 {[%clk 0:01:38]}  Nf4+ {[%clk 0:00:19]} 51. Kh2 {[%clk 0:01:29]}  Kd5 {[%clk 0:00:20]} 52. Na5 {[%clk 0:01:20]}  Ne6 {[%clk 0:00:19]} 53. Nb7 {[%clk 0:01:16]}  Nxd4 {[%clk 0:00:19]} 54. Nd6 {[%clk 0:01:14]}  Kxc5 {[%clk 0:00:17]} 55. Ne4+ {[%clk 0:01:15]}  Kb4 {[%clk 0:00:17]} 56. Nxf6 {[%clk 0:01:16]}  c5 {[%clk 0:00:17]} 57. Kg2 {[%clk 0:01:14]}  c4 {[%clk 0:00:16]} 58. Kf2 {[%clk 0:01:14]}  c3 {[%clk 0:00:16]} 59. Ke3 {[%clk 0:01:14]}  Kb3 {[%clk 0:00:11]} 60. Ne4 {[%clk 0:01:05]}  c2 {[%clk 0:00:10]} 61. Kxd4 {[%clk 0:01:05]}  c1=Q {[%clk 0:00:09]} 62. Kd5 {[%clk 0:01:06]}  Qe3 {[%clk 0:00:09]} 63. Ke5 {[%clk 0:01:05]}  Kxa4 {[%clk 0:00:09]} 64. Kd5 {[%clk 0:01:04]}  Ka3 {[%clk 0:00:08]} 65. Ke5 {[%clk 0:01:01]}  a5 {[%clk 0:00:07]} 66. Kd5 {[%clk 0:01:01]}  a4 {[%clk 0:00:07]} 67. Nd6 {[%clk 0:01:02]}  Qd3+ {[%clk 0:00:07]} 68. Ke5 {[%clk 0:01:02]}  Qxd6+ {[%clk 0:00:07]} 69. Kxd6 {[%clk 0:01:03]}  Kb3 {[%clk 0:00:08]} 70. Ke5 {[%clk 0:01:04]}  a3 {[%clk 0:00:09]} 71. Kf5 {[%clk 0:01:04]}  a2 {[%clk 0:00:09]} 72. Kxg5 {[%clk 0:01:05]}  a1=Q {[%clk 0:00:10]} 73. Kxh4 {[%clk 0:01:06]}  Qf6+ {[%clk 0:00:10]} 74. Kh5 {[%clk 0:01:07]}  Qg7 {[%clk 0:00:11]} 75. h4 {[%clk 0:01:07]}  Kc4 {[%clk 0:00:10]} 76. g5 {[%clk 0:01:07]}  Kd5 {[%clk 0:00:11]} 77. Kg4 {[%clk 0:01:07]}  Ke6 {[%clk 0:00:11]} 78. h5 {[%clk 0:01:06]}  Qd4+ {[%clk 0:00:11]} 79. Kg3 {[%clk 0:01:06]}  Kf5 {[%clk 0:00:12]} 80. g6 {[%clk 0:01:05]}  Qg4+ {[%clk 0:00:12]} 0-1

[Event "December 19 Late 2023"]
[Site "https://www.chess.com"]
[Date "2023.12.19"]
[Round "1"]
[White "Rastbod, Ali"]
[Black "Pein, Jonathan"]
[Result "1/2-1/2"]
[Board "75"]
[TimeControl "180+1"]
[WhiteFideId "12567477"]
[BlackFideId "417092"]
[WhiteElo "2209"]
[BlackElo "2130"]
[WhiteTeam "IRI"]
[BlackTeam "ENG"]
[WhiteClock "0:00:17"]
[BlackClock "0:00:19"]

1. Nf3 {[%clk 0:02:50]}  g6 {[%clk 0:02:59]} 2. e4 {[%clk 0:02:50]}  Bg7 {[%clk 0:03:00]} 3. d4 {[%clk 0:02:50]}  d6 {[%clk 0:02:58]} 4. Nc3 {[%clk 0:02:50]}  a6 {[%clk 0:02:58]} 5. a4 {[%clk 0:02:51]}  Nd7 {[%clk 0:02:58]} 6. Bc4 {[%clk 0:02:49]}  e6 {[%clk 0:02:59]} 7. a5 {[%clk 0:02:45]}  Ne7 {[%clk 0:02:59]} 8. h4 {[%clk 0:02:44]}  h6 {[%clk 0:02:58]} 9. Bf4 {[%clk 0:02:45]}  O-O {[%clk 0:02:47]} 10. Qd2 {[%clk 0:02:45]}  Kh7 {[%clk 0:02:48]} 11. h5 {[%clk 0:02:45]}  g5 {[%clk 0:02:46]} 12. Bxg5 {[%clk 0:02:44]}  hxg5 {[%clk 0:02:39]} 13. Nxg5+ {[%clk 0:02:45]}  Kg8 {[%clk 0:02:39]} 14. Bxe6 {[%clk 0:02:06]}  fxe6 {[%clk 0:02:23]} 15. Nxe6 {[%clk 0:02:07]}  Qe8 {[%clk 0:02:23]} 16. Nxc7 {[%clk 0:02:01]}  Qf7 {[%clk 0:02:23]} 17. Nxa8 {[%clk 0:02:01]}  Nc6 {[%clk 0:02:22]} 18. d5 {[%clk 0:01:48]}  Nce5 {[%clk 0:02:19]} 19. h6 {[%clk 0:01:41]}  Bf6 {[%clk 0:02:18]} 20. Qe2 {[%clk 0:01:32]}  Bg5 {[%clk 0:02:13]} 21. g3 {[%clk 0:01:25]}  Nf3+ {[%clk 0:02:11]} 22. Kf1 {[%clk 0:01:25]}  Nde5 {[%clk 0:02:09]} 23. h7+ {[%clk 0:01:22]}  Kh8 {[%clk 0:02:08]} 24. Kg2 {[%clk 0:00:59]}  Bg4 {[%clk 0:02:05]} 25. Qf1 {[%clk 0:00:40]}  Nd2 {[%clk 0:01:10]} 26. Qe1 {[%clk 0:00:39]}  Bf3+ {[%clk 0:01:09]} 27. Kg1 {[%clk 0:00:38]}  Bxh1 {[%clk 0:01:09]} 28. Kxh1 {[%clk 0:00:37]}  Qh5+ {[%clk 0:00:59]} 29. Kg2 {[%clk 0:00:38]}  Qf3+ {[%clk 0:00:52]} 30. Kg1 {[%clk 0:00:34]}  Rxa8 {[%clk 0:00:33]} 31. Qe2 {[%clk 0:00:34]}  Kxh7 {[%clk 0:00:25]} 32. Qxf3 {[%clk 0:00:34]}  Ndxf3+ {[%clk 0:00:25]} 33. Kg2 {[%clk 0:00:35]}  Nd4 {[%clk 0:00:26]} 34. f4 {[%clk 0:00:35]}  Nxc2 {[%clk 0:00:25]} 35. Rh1+ {[%clk 0:00:33]}  Kg6 {[%clk 0:00:25]} 36. fxe5 {[%clk 0:00:33]}  dxe5 {[%clk 0:00:21]} 37. Kf3 {[%clk 0:00:29]}  Nd4+ {[%clk 0:00:21]} 38. Kg2 {[%clk 0:00:29]}  Rf8 {[%clk 0:00:20]} 39. Re1 {[%clk 0:00:24]}  Bd2 {[%clk 0:00:20]} 40. Rd1 {[%clk 0:00:25]}  Bxc3 {[%clk 0:00:19]} 41. bxc3 {[%clk 0:00:25]}  Nb5 {[%clk 0:00:20]} 42. c4 {[%clk 0:00:24]}  Nd6 {[%clk 0:00:21]} 43. Rb1 {[%clk 0:00:19]}  Rc8 {[%clk 0:00:20]} 44. Rb6 {[%clk 0:00:19]}  Rxc4 {[%clk 0:00:20]} 45. Rxd6+ {[%clk 0:00:19]}  Kg5 {[%clk 0:00:21]} 46. Rb6 {[%clk 0:00:14]}  Rxe4 {[%clk 0:00:21]} 47. Rxb7 {[%clk 0:00:15]}  Rd4 {[%clk 0:00:21]} 48. Rb6 {[%clk 0:00:14]}  Rxd5 {[%clk 0:00:21]} 49. Rxa6 {[%clk 0:00:14]}  e4 {[%clk 0:00:19]} 50. Kf2 {[%clk 0:00:15]}  Rd3 {[%clk 0:00:17]} 51. Re6 {[%clk 0:00:15]}  Rf3+ {[%clk 0:00:16]} 52. Ke2 {[%clk 0:00:14]}  Rxg3 {[%clk 0:00:15]} 53. Rxe4 {[%clk 0:00:12]}  Ra3 {[%clk 0:00:16]} 54. Re5+ {[%clk 0:00:09]}  Kf6 {[%clk 0:00:16]} 55. Rh5 {[%clk 0:00:09]}  Ke6 {[%clk 0:00:17]} 56. Kd2 {[%clk 0:00:10]}  Kd6 {[%clk 0:00:17]} 57. Kc2 {[%clk 0:00:10]}  Kc6 {[%clk 0:00:18]} 58. Kb2 {[%clk 0:00:11]}  Ra4 {[%clk 0:00:16]} 59. Kb3 {[%clk 0:00:11]}  Rg4 {[%clk 0:00:17]} 60. Re5 {[%clk 0:00:10]}  Kb7 {[%clk 0:00:17]} 61. Ka3 {[%clk 0:00:10]}  Ka6 {[%clk 0:00:18]} 62. Rf5 {[%clk 0:00:10]}  Rd4 {[%clk 0:00:18]} 63. Kb3 {[%clk 0:00:11]}  Rh4 {[%clk 0:00:18]} 64. Rc5 {[%clk 0:00:11]}  Rg4 {[%clk 0:00:17]} 65. Kc2 {[%clk 0:00:11]}  Ra4 {[%clk 0:00:17]} 66. Kb3 {[%clk 0:00:11]}  Rxa5 {[%clk 0:00:18]} 67. Rc6+ {[%clk 0:00:12]}  Kb7 {[%clk 0:00:18]} 68. Rh6 {[%clk 0:00:12]}  Rg5 {[%clk 0:00:18]} 69. Kc4 {[%clk 0:00:12]}  Kc7 {[%clk 0:00:19]} 70. Ra6 {[%clk 0:00:11]}  Kb7 {[%clk 0:00:19]} 71. Re6 {[%clk 0:00:12]}  Kc7 {[%clk 0:00:20]} 72. Kd4 {[%clk 0:00:12]}  Kd7 {[%clk 0:00:20]} 73. Ra6 {[%clk 0:00:13]}  Kc7 {[%clk 0:00:18]} 74. Ke4 {[%clk 0:00:13]}  Kb7 {[%clk 0:00:18]} 75. Rf6 {[%clk 0:00:14]}  Ra5 {[%clk 0:00:18]} 76. Kd4 {[%clk 0:00:14]}  Kc7 {[%clk 0:00:19]} 77. Kc4 {[%clk 0:00:15]}  Kd7 {[%clk 0:00:19]} 78. Kb4 {[%clk 0:00:15]}  Rh5 {[%clk 0:00:19]} 79. Rg6 {[%clk 0:00:15]}  Ke7 {[%clk 0:00:19]} 80. Rb6 {[%clk 0:00:16]}  Kd7 {[%clk 0:00:20]} 81. Rb5 {[%clk 0:00:16]}  Rxb5+ {[%clk 0:00:19]} 82. Kxb5 {[%clk 0:00:17]} 1/2-1/2